bitfinex/quotes_BTCUSD_20250518
["timestamp","ask_amount","ask_price","bid_price","bid_amount"]
[1747606371457,0.02167527,104150.0,104140.0,0.37006908]
[1747606371658,0.02067527,104150.0,104140.0,0.38277732]
[1747606371951,0.03027643,104150.0,104140.0,0.38377732]
[1747606372331,0.02927643,104150.0,104140.0,0.38277732]
[1747606372535,0.02927643,104150.0,104140.0,0.38577732]
[1747606374054,0.02927643,104150.0,104140.0,0.38777732]
[1747606374273,0.01967527,104150.0,104140.0,0.38777732]
[1747606374479,0.01967518,104150.0,104140.0,0.38777732]
[1747606375596,0.23090832,104150.0,104140.0,0.35897143]
[1747606375793,0.23090832,104150.0,104140.0,0.31666916]
[1747606375794,0.22130762,104150.0,104140.0,0.31666916]
[1747606376008,0.22130762,104150.0,104140.0,0.32627124]
[1747606376149,0.23090915,104150.0,104140.0,0.33587323]
[1747606376554,0.23090906,104150.0,104140.0,0.33587323]
[1747606376759,0.24051059,104150.0,104140.0,0.34547513]
[1747606377210,0.23090906,104150.0,104140.0,0.35507694]
[1747606378253,0.24051059,104150.0,104140.0,0.31666916]
[1747606378373,0.23090906,104150.0,104140.0,0.33587324]
[1747606378579,0.23090906,104150.0,104140.0,0.34547505]
[1747606378777,0.23090906,104150.0,104140.0,0.59335505]
[1747606379424,0.23090906,104150.0,104140.0,0.34547505]
[1747606379649,0.23090906,104150.0,104140.0,0.59335505]
[1747606379867,0.24051059,104150.0,104140.0,0.01770824]
[1747606379991,0.22870719,104150.0,104140.0,0.01770824]
[1747606380187,0.21910575,104150.0,104140.0,0.02731069]
[1747606380866,0.22630422,104150.0,104140.0,0.01770824]
[1747606381292,0.24084507,104150.0,104140.0,0.01770824]
[1747606382084,0.55919239,104150.0,104140.0,0.01570824]
[1747606382291,0.80615239,104150.0,104140.0,0.01370824]
[1747606382706,0.80615239,104150.0,104140.0,0.01470824]
[1747606383120,0.58511447,104150.0,104140.0,0.01370824]
[1747606383356,0.58611447,104150.0,104140.0,0.01370824]
[1747606383787,0.92611447,104150.0,104140.0,0.01370824]
[1747606383992,1.22455552,104150.0,104140.0,0.01270824]
[1747606384193,1.22555552,104150.0,104140.0,0.01270824]
[1747606384393,1.24655552,104150.0,104140.0,0.01270824]
[1747606384643,0.2446737,104130.0,104120.0,0.052]
[1747606384827,0.56302102,104130.0,104120.0,0.052]
[1747606385651,0.78405894,104130.0,104120.0,0.052]
[1747606385889,0.90505894,104130.0,104120.0,0.052]
[1747606386080,0.56402102,104130.0,104120.0,0.052]
[1747606386294,0.56502102,104130.0,104120.0,0.052]
[1747606386516,0.3439831,104130.0,104120.0,0.052]
[1747606387342,0.56502102,104130.0,104120.0,0.052]
[1747606387750,0.57463037,104130.0,104120.0,0.052]
[1747606390670,0.69463037,104130.0,104120.0,0.052]
[1747606390894,0.70917122,104130.0,104120.0,0.052]
[1747606391102,0.93020914,104130.0,104120.0,0.052]
[1747606391310,0.81020914,104130.0,104120.0,0.052]
[1747606391507,1.41816914,104130.0,104120.0,0.052]
[1747606391717,1.40816914,104130.0,104120.0,0.052]
[1747606392365,1.41716914,104130.0,104120.0,0.052]
[1747606392578,1.51747854,104130.0,104120.0,0.053]
[1747606393390,1.42016914,104130.0,104120.0,0.053]
[1747606393608,1.40455979,104130.0,104120.0,0.053]
[1747606394044,1.43121967,104130.0,104120.0,0.053]
[1747606394657,1.45741234,104130.0,104120.0,0.053]
[1747606395498,0.26085515,104110.0,104100.0,0.052]
[1747606395718,1.45454039,104110.0,104100.0,0.052]
[1747606396715,1.45454039,104110.0,104100.0,0.05214204]
[1747606397344,1.45654039,104110.0,104100.0,0.05214204]
[1747606397558,1.86130039,104110.0,104100.0,0.05214204]
[1747606397766,0.48143366,104090.0,104080.0,0.052]
[1747606397970,0.82674306,104090.0,104080.0,0.05209065]
[1747606399451,0.82674306,104090.0,104080.0,0.05309065]
[1747606399647,0.82774306,104090.0,104080.0,0.05309065]
[1747606403013,0.84192963,104090.0,104080.0,0.05309065]
[1747606403570,0.59392963,104090.0,104080.0,0.05309065]
[1747606403778,0.58411171,104090.0,104080.0,0.05309065]
[1747606404181,0.80514963,104090.0,104080.0,0.05309065]
[1747606404411,0.83944963,104090.0,104080.0,0.05309065]
[1747606405569,0.61841171,104090.0,104080.0,0.05309065]
[1747606405767,0.70411171,104090.0,104080.0,0.05309065]
[1747606407324,0.73841171,104090.0,104080.0,0.05309065]
[1747606408377,0.70411171,104090.0,104080.0,0.05309065]
[1747606408811,1.03422511,104090.0,104080.0,0.05309065]
[1747606409016,1.03422511,104090.0,104080.0,0.07059065]
[1747606409441,1.03422511,104090.0,104080.0,0.05309065]
[1747606410448,1.03422511,104090.0,104080.0,0.07059065]
[1747606411503,1.03422511,104090.0,104080.0,0.05309065]
[1747606411683,1.00982303,104090.0,104080.0,0.05309065]
[1747606411903,1.27236303,104090.0,104080.0,0.05309065]
[1747606412194,1.05132511,104090.0,104080.0,0.05609189]
[1747606412448,1.03713854,104090.0,104080.0,0.05609189]
[1747606412865,1.3056616,104090.0,104080.0,0.05609189]
[1747606413070,1.27627646,104090.0,104080.0,0.05609189]
[1747606413901,1.27627646,104090.0,104080.0,0.05309065]
[1747606417976,1.03713854,104090.0,104080.0,0.05309065]
[1747606419599,1.01983854,104090.0,104080.0,0.05309065]
[1747606419809,1.01935854,104090.0,104080.0,0.05309065]
[1747606420040,1.01935854,104090.0,104080.0,0.05609208]
[1747606420699,0.77459854,104090.0,104080.0,0.07349208]
[1747606420945,1.00473769,104090.0,104080.0,0.07349208]
[1747606421160,1.01927854,104090.0,104080.0,0.07349208]
[1747606422073,1.01927854,104090.0,104080.0,0.08620032]
[1747606422267,1.01927854,104090.0,104080.0,0.06880032]
[1747606422554,1.24031646,104090.0,104080.0,0.06880032]
[1747606423553,1.01927854,104090.0,104080.0,0.06880032]
[1747606424168,1.01927854,104090.0,104080.0,0.05609208]
[1747606424968,1.01927854,104090.0,104080.0,0.07299208]
[1747606425198,1.01927854,104090.0,104080.0,0.05609208]
[1747606427551,1.01927854,104090.0,104080.0,0.07229208]
[1747606427905,1.01927854,104090.0,104080.0,0.05609208]
[1747606431021,1.01927854,104090.0,104080.0,0.07229208]
[1747606431435,1.01859854,104090.0,104080.0,0.07229208]
[1747606431678,1.01859854,104090.0,104080.0,0.05609208]
[1747606432912,0.14021348,104090.0,104080.0,0.31067481]
[1747606433099,0.121,104090.0,104080.0,0.31067481]
[1747606433295,0.13060624,104090.0,104080.0,0.31067481]
[1747606433707,0.13060633,104090.0,104080.0,0.31067481]
[1747606433857,0.14021284,104090.0,104080.0,0.31067481]
[1747606434056,0.3409615,104090.0,104080.0,0.53549985]
[1747606434286,0.33135499,104090.0,104080.0,0.54410747]
[1747606434548,0.30831173,104090.0,104080.0,0.28845842]
[1747606434679,0.30831173,104090.0,104080.0,0.29906613]
[1747606434878,0.30831173,104090.0,104080.0,0.30867375]
[1747606435417,0.30831173,104090.0,104080.0,0.31828128]
[1747606435623,0.30831173,104090.0,104080.0,0.33078053]
[1747606435790,0.21135499,104090.0,104080.0,0.32878053]
[1747606435987,0.21335499,104090.0,104080.0,0.33678053]
[1747606436311,0.21335499,104090.0,104080.0,0.34638797]
[1747606436497,0.21335499,104090.0,104080.0,0.33678053]
[1747606436713,0.21335499,104090.0,104080.0,0.31756538]
[1747606436916,0.21335499,104090.0,104080.0,0.327173]
[1747606437244,0.03082009,104090.0,104080.0,0.33678044]
[1747606437411,0.21335545,104090.0,104080.0,0.1061899]
[1747606437653,0.002,104090.0,104080.0,0.32717244]
[1747606438678,0.002,104090.0,104080.0,0.76448184]
[1747606439129,0.01920712,104120.0,104110.0,0.25531905]
[1747606439297,0.00960347,104120.0,104110.0,0.25531905]
[1747606439506,0.03841516,104120.0,104110.0,0.25531905]
[1747606440118,0.02881105,104120.0,104110.0,0.25531905]
[1747606440323,0.0212061,104130.0,104120.0,0.09788536]
[1747606440560,0.0212061,104130.0,104120.0,0.12669715]
[1747606440561,0.002,104130.0,104120.0,0.12669715]
[1747606440852,0.2228768,104130.0,104120.0,0.10748957]
[1747606441080,0.02120629,104130.0,104120.0,0.25499784]
[1747606441469,0.02120629,104130.0,104120.0,0.25508858]
[1747606441704,0.22287727,104130.0,104120.0,0.24548484]
[1747606442155,0.22287727,104130.0,104120.0,0.03419065]
[1747606442371,0.20367098,104130.0,104120.0,9.065e-05]
[1747606442578,0.20567098,104130.0,104120.0,9.065e-05]
[1747606443349,0.20667098,104130.0,104120.0,9.065e-05]
[1747606446032,0.32667098,104130.0,104120.0,9.065e-05]
[1747606447949,0.34387098,104130.0,104120.0,9.065e-05]
[1747606448553,0.32667098,104130.0,104120.0,9.065e-05]
[1747606450381,0.36027098,104130.0,104120.0,9.065e-05]
[1747606450906,0.34347098,104130.0,104120.0,9.065e-05]
[1747606451121,0.32667098,104130.0,104120.0,9.065e-05]
[1747606451535,0.125,104130.0,104120.0,0.2085767]
[1747606451753,0.15380892,104130.0,104120.0,0.25478849]
[1747606451968,0.35547907,104130.0,104120.0,0.24518484]
[1747606452178,0.34587652,104130.0,104120.0,0.23558091]
[1747606452385,0.34587652,104130.0,104120.0,0.03389065]
[1747606452587,0.3352737,104130.0,104120.0,0.24518484]
[1747606452802,0.16041203,104130.0,104120.0,0.25678886]
[1747606453039,0.15080865,104130.0,104120.0,0.26739251]
[1747606453250,0.17001512,104130.0,104120.0,0.26739251]
[1747606453490,0.122,104130.0,104120.0,0.26739251]
[1747606453905,0.15080828,104130.0,104120.0,0.26739251]
[1747606454112,0.15080828,104130.0,104120.0,0.27989176]
[1747606454544,0.16041138,104130.0,104120.0,0.27989176]
[1747606454800,0.34287699,104130.0,104120.0,0.0589942]
[1747606455027,0.33327408,104130.0,104120.0,0.0493899]
[1747606455506,0.33327408,104130.0,104120.0,0.0155899]
[1747606455743,0.35077408,104130.0,104120.0,0.0155899]
[1747606455980,0.36857408,104130.0,104120.0,0.0155899]
[1747606457608,0.36857408,104130.0,104120.0,0.00309065]
[1747606458926,1.04146225,104130.0,104120.0,0.00309065]
[1747606459752,1.04146225,104130.0,104120.0,0.00109065]
[1747606459972,1.04246225,104130.0,104120.0,0.00109065]
[1747606460176,0.82142433,104130.0,104120.0,0.00109065]
[1747606460388,0.82142433,104130.0,104120.0,9.065e-05]
[1747606461247,1.00402038,104130.0,104120.0,9.065e-05]
[1747606461453,0.14220537,104130.0,104120.0,0.24468474]
[1747606461661,0.35347926,104130.0,104120.0,0.23508081]
[1747606461858,0.34387671,104130.0,104120.0,0.23508081]
[1747606462075,0.15180911,104130.0,104120.0,0.23508081]
[1747606462289,0.35348009,104130.0,104120.0,0.25428858]
[1747606462521,0.14120629,104130.0,104120.0,0.24468474]
[1747606462731,0.15080884,104130.0,104120.0,0.26389223]
[1747606462941,0.16041203,104130.0,104120.0,0.26989223]
[1747606463157,0.122,104130.0,104120.0,0.26989223]
[1747606463363,0.14120574,104130.0,104120.0,0.26989223]
[1747606463571,0.16041221,104130.0,104120.0,0.26989223]
[1747606463778,0.17001559,104130.0,104120.0,0.26989223]
[1747606464005,0.17001559,104130.0,104120.0,0.28239148]
[1747606464234,0.15080893,104130.0,104120.0,0.28239148]
[1747606465391,0.35247981,104130.0,104120.0,0.26318399]
[1747606465600,0.32367088,104130.0,104120.0,0.0518899]
[1747606469430,0.32367088,104130.0,104120.0,0.00609065]
[1747606470021,0.35727088,104130.0,104120.0,0.00609065]
[1747606471036,0.69015905,104130.0,104120.0,0.00609065]
[1747606471681,0.69015905,104130.0,104120.0,0.00309065]
[1747606471916,0.69015905,104130.0,104120.0,0.00209065]
[1747606472097,0.46912113,104130.0,104120.0,0.00309065]
[1747606473957,0.69015905,104130.0,104120.0,0.00309065]
[1747606474173,0.46912113,104130.0,104120.0,0.00309065]
[1747606475942,0.80912113,104130.0,104120.0,0.00309065]
[1747606476895,1.03015905,104130.0,104120.0,0.00309065]
[1747606477829,1.03015905,104130.0,104120.0,0.00109065]
[1747606478112,1.03015905,104130.0,104120.0,9.065e-05]
[1747606478598,1.03115905,104130.0,104120.0,9.065e-05]
[1747606480161,1.25219697,104130.0,104120.0,9.065e-05]
[1747606480380,1.03115905,104130.0,104120.0,9.065e-05]
[1747606482563,0.81012113,104130.0,104120.0,9.065e-05]
[1747606482778,1.05084113,104130.0,104120.0,9.065e-05]
[1747606484104,1.27187905,104130.0,104120.0,9.065e-05]
[1747606484870,1.49291697,104130.0,104120.0,9.065e-05]
[1747606485748,1.27187905,104130.0,104120.0,9.065e-05]
[1747606489037,1.49291697,104130.0,104120.0,9.065e-05]
[1747606492552,1.27187905,104130.0,104120.0,9.065e-05]
[1747606492762,1.49291697,104130.0,104120.0,9.065e-05]
[1747606494000,1.49191697,104130.0,104120.0,9.065e-05]
[1747606494210,1.49591697,104130.0,104120.0,0.00109065]
[1747606494421,1.49991697,104130.0,104120.0,0.00109065]
[1747606494657,1.56752697,104130.0,104120.0,0.00109065]
[1747606500266,1.60779604,104130.0,104120.0,0.00109065]
[1747606500489,0.78693366,104090.0,104080.0,0.052]
[1747606500708,1.15718306,104090.0,104080.0,0.05214212]
[1747606501139,0.6774515,104090.0,104080.0,0.06934212]
[1747606501367,0.9170915,104090.0,104080.0,0.08764212]
[1747606501589,1.13812942,104090.0,104080.0,0.06934212]
[1747606501806,1.13812942,104090.0,104080.0,0.05214212]
[1747606502228,1.17382942,104090.0,104080.0,0.05214212]
[1747606503519,1.17382942,104090.0,104080.0,0.05314212]
[1747606503836,0.9170915,104090.0,104080.0,0.05414212]
[1747606504053,0.9170915,104090.0,104080.0,0.08944212]
[1747606506673,0.9170915,104090.0,104080.0,0.09244328]
[1747606508251,0.33135489,104090.0,104080.0,0.09244328]
[1747606508463,0.32174829,104090.0,104080.0,0.09244328]
[1747606508681,0.20174829,104090.0,104080.0,0.09244328]
[1747606509461,0.29905769,104090.0,104080.0,0.09244328]
[1747606510497,0.31351343,104090.0,104080.0,0.09244328]
[1747606510715,0.20176777,104080.0,104070.0,0.01237995]
[1747606512000,0.19315987,104080.0,104070.0,0.02798886]
[1747606512214,0.1791817,104080.0,104070.0,0.02798886]
[1747606512420,0.17207146,104080.0,104070.0,0.01837995]
[1747606513411,0.18167945,104080.0,104070.0,0.2201672]
[1747606513615,0.18167945,104080.0,104070.0,0.01837995]
[1747606513894,0.18167945,104080.0,104070.0,0.05367995]
[1747606514115,0.18167945,104080.0,104070.0,0.0413]
[1747606514755,0.18167945,104080.0,104070.0,0.05090891]
[1747606514971,0.22198292,104080.0,104070.0,0.25269589]
[1747606515206,0.23159091,104080.0,104070.0,0.25269589]
[1747606515641,0.22198347,104080.0,104070.0,0.25269589]
[1747606516027,0.21237548,104080.0,104070.0,0.25269589]
[1747606516274,0.001,104080.0,104070.0,0.25269589]
[1747606516503,0.001,104080.0,104070.0,0.3692221]
[1747606516684,0.001,104080.0,104070.0,0.6094621]
[1747606517579,0.01060734,104080.0,104070.0,0.6094621]
[1747606518385,0.001,104080.0,104070.0,0.9494621]
[1747606518602,0.01060734,104080.0,104070.0,0.9494621]
[1747606518817,0.001,104080.0,104070.0,0.9494621]
[1747606519062,0.001,104080.0,104070.0,1.1890621]
[1747606522071,0.02886648,104090.0,104080.0,0.25558273]
[1747606522280,0.01925997,104090.0,104080.0,0.35289213]
[1747606523194,0.02025997,104090.0,104080.0,0.35289213]
[1747606523691,0.02125997,104090.0,104080.0,0.35289213]
[1747606524176,0.2134022,104090.0,104080.0,0.33367726]
[1747606524391,0.02026079,104090.0,104080.0,0.36250022]
[1747606524600,0.01926079,104090.0,104080.0,0.37210756]
[1747606524803,0.01926079,104090.0,104080.0,0.37510756]
[1747606525024,0.02886776,104090.0,104080.0,0.37510756]
[1747606525229,0.01926024,104090.0,104080.0,0.37510756]
[1747606525443,0.02886712,104090.0,104080.0,0.37510756]
[1747606525884,0.02986712,104090.0,104080.0,0.37910756]
[1747606527028,0.02026006,104090.0,104080.0,0.37910756]
[1747606527964,0.00104731,104090.0,104080.0,0.71910756]
[1747606528905,0.01921164,104100.0,104090.0,0.2550615]
[1747606529922,0.02881714,104100.0,104090.0,0.2550615]
[1747606530127,0.02881714,104100.0,104090.0,0.2570615]
[1747606530333,0.02881714,104100.0,104090.0,0.26933064]
[1747606530703,0.02881714,104100.0,104090.0,0.27033064]
[1747606532732,0.01160439,104110.0,104100.0,0.22094027]
[1747606532964,0.030814,104110.0,104100.0,0.25694027]
[1747606533173,0.24212885,104110.0,104100.0,0.23924045]
[1747606533376,0.24212885,104110.0,104100.0,0.24884604]
[1747606533582,0.24212885,104110.0,104100.0,0.23054604]
[1747606534221,0.02881704,104100.0,104090.0,0.35893288]
[1747606534441,0.01921108,104100.0,104090.0,0.35893288]
[1747606534653,0.02881695,104100.0,104090.0,0.35893288]
[1747606534854,0.02881695,104100.0,104090.0,0.35693288]
[1747606535906,0.0096054,104100.0,104090.0,0.35893288]
[1747606536368,0.21431485,104110.0,104100.0,0.23754027]
[1747606536369,0.01160485,104110.0,104100.0,0.23754027]
[1747606536581,0.03081446,104110.0,104100.0,0.23754027]
[1747606536794,0.04041968,104110.0,104100.0,0.23754027]
[1747606537236,0.02881732,104100.0,104090.0,0.60615994]
[1747606537453,0.02881732,104100.0,104090.0,0.61476636]
[1747606537671,0.01921127,104100.0,104090.0,0.37644636]
[1747606537876,0.01921127,104100.0,104090.0,0.61276636]
[1747606538103,0.01921118,104100.0,104090.0,0.61276636]
[1747606538617,0.02881705,104100.0,104090.0,0.61276636]
[1747606539021,0.02881695,104100.0,104090.0,0.61276636]
[1747606539478,0.02881695,104100.0,104090.0,0.61476636]
[1747606539881,0.03842291,104100.0,104090.0,0.61476636]
[1747606540115,0.03842282,104100.0,104090.0,0.61576636]
[1747606540323,0.02881695,104100.0,104090.0,0.61576636]
[1747606540955,0.21331466,104110.0,104100.0,0.20172891]
[1747606541164,0.01160457,104110.0,104100.0,0.25574027]
[1747606541370,0.03081418,104110.0,104100.0,0.25574027]
[1747606541568,0.23252372,104110.0,104100.0,0.24613487]
[1747606541783,0.23252372,104110.0,104100.0,0.24180401]
[1747606542204,0.2229197,104110.0,104100.0,0.24180401]
[1747606542844,0.2239197,104110.0,104100.0,0.24180401]
[1747606543505,0.2239197,104110.0,104100.0,0.23219814]
[1747606543703,0.2239197,104110.0,104100.0,0.01226914]
[1747606543704,0.21431476,104110.0,104100.0,0.01226914]
[1747606543911,0.2297045,104110.0,104100.0,0.01226914]
[1747606544991,0.54805182,104110.0,104100.0,0.01226914]
[1747606545199,0.90259267,104110.0,104100.0,0.01226914]
[1747606547129,0.95984498,104110.0,104100.0,0.01226914]
[1747606547335,0.90259267,104110.0,104100.0,0.01226914]
[1747606547575,0.26139574,104090.0,104080.0,0.01226914]
[1747606547778,0.35870514,104090.0,104080.0,0.01226914]
[1747606548210,0.35870514,104090.0,104080.0,0.01527015]
[1747606548691,0.57974306,104090.0,104080.0,0.01527015]
[1747606549592,0.58933832,104090.0,104080.0,0.01527015]
[1747606549820,1.02664772,104090.0,104080.0,0.00300101]
[1747606550040,0.92933832,104090.0,104080.0,0.00400101]
[1747606550257,0.92933832,104090.0,104080.0,0.002]
[1747606551118,1.61713832,104090.0,104080.0,0.001]
[1747606551326,0.26043637,104070.0,104060.0,0.01370914]
[1747606551545,0.59434577,104070.0,104060.0,0.01375645]
[1747606551763,0.59434577,104070.0,104060.0,0.01675817]
[1747606552447,0.57980492,104070.0,104060.0,0.01675817]
[1747606552652,0.22929552,104070.0,104060.0,0.01675817]
[1747606552857,0.24589552,104070.0,104060.0,0.00448903]
[1747606553068,0.24589552,104070.0,104060.0,0.00748903]
[1747606553300,0.24589552,104070.0,104060.0,0.01048903]
[1747606555064,0.36589552,104070.0,104060.0,0.01048903]
[1747606557735,0.36589552,104070.0,104060.0,0.00748731]
[1747606558813,0.69878369,104070.0,104060.0,0.00748731]
[1747606559030,0.36589552,104070.0,104060.0,0.00748731]
[1747606559918,0.36589552,104070.0,104060.0,0.00148731]
[1747606560127,0.36589552,104070.0,104060.0,0.00348731]
[1747606561009,0.60201552,104070.0,104060.0,0.00348731]
[1747606561446,0.33139552,104070.0,104060.0,0.00348731]
[1747606561883,0.36669552,104070.0,104060.0,0.00348731]
[1747606562781,0.69958369,104070.0,104060.0,0.00348731]
[1747606563194,0.47854577,104070.0,104060.0,0.00348731]
[1747606563636,1.03958369,104070.0,104060.0,0.00348731]
[1747606564505,1.27550369,104070.0,104060.0,0.00348731]
[1747606564726,1.05446577,104070.0,104060.0,0.00348731]
[1747606564992,1.27550369,104070.0,104060.0,0.00348731]
[1747606565224,1.05446577,104070.0,104060.0,0.00348731]
[1747606565892,0.81854577,104070.0,104060.0,0.00348731]
[1747606566117,0.94253552,104070.0,104060.0,0.00348731]
[1747606566592,0.70669552,104070.0,104060.0,0.00348731]
[1747606567856,1.03958369,104070.0,104060.0,0.00348731]
[1747606568927,0.81854577,104070.0,104060.0,0.00348731]
[1747606569146,1.03958369,104070.0,104060.0,0.00348731]
[1747606570004,0.81854577,104070.0,104060.0,0.00348731]
[1747606571335,0.32178707,104070.0,104060.0,0.00348731]
[1747606571555,0.32178707,104070.0,104060.0,0.02068731]
[1747606571784,0.32178707,104070.0,104060.0,0.00348731]
[1747606571998,0.35658707,104070.0,104060.0,0.00348731]
[1747606572209,0.46843732,104070.0,104060.0,0.00348731]
[1747606572859,0.68947524,104070.0,104060.0,0.00648896]
[1747606573700,0.46843732,104070.0,104060.0,0.00648896]
[1747606578062,0.68947524,104070.0,104060.0,0.00648896]
[1747606580113,0.48630471,104070.0,104060.0,0.00648896]
[1747606580390,0.70734263,104070.0,104060.0,0.00648896]
[1747606580612,0.48630471,104070.0,104060.0,0.00648896]
[1747606581527,0.70734263,104070.0,104060.0,0.00648896]
[1747606581977,0.48630471,104070.0,104060.0,0.00648896]
[1747606582440,0.72130471,104070.0,104060.0,0.00648896]
[1747606587131,0.94234263,104070.0,104060.0,0.00648896]
[1747606587336,1.28234263,104070.0,104060.0,0.00648896]
[1747606587605,1.50338055,104070.0,104060.0,0.00648896]
[1747606588035,1.48551316,104070.0,104060.0,0.00648896]
[1747606588238,1.53361316,104070.0,104060.0,0.00548896]
[1747606588640,1.53361316,104070.0,104060.0,0.00248731]
[1747606589004,2.28155614,104070.0,104060.0,0.00148731]
[1747606589226,1.61575614,104070.0,104060.0,0.00148731]
[1747606589621,1.64461114,104070.0,104060.0,0.00148731]
[1747606590030,1.64361114,104070.0,104060.0,0.00148731]
[1747606590258,1.74492054,104070.0,104060.0,0.00248731]
[1747606590483,0.62161637,104060.0,104050.0,0.04785796]
[1747606590687,1.93634552,104060.0,104050.0,0.01189995]
[1747606590828,0.5763667,104050.0,104040.0,0.002]
[1747606591041,1.74672723,104050.0,104040.0,0.002]
[1747606591238,1.76346552,104050.0,104040.0,0.002]
[1747606591643,1.73359161,104050.0,104040.0,0.002]
[1747606591841,1.70332254,104050.0,104040.0,0.002]
[1747606592141,1.80363194,104050.0,104040.0,0.002]
[1747606592776,1.56259402,104050.0,104040.0,0.002]
[1747606592952,1.57259402,104050.0,104040.0,0.002]
[1747606593170,1.56359402,104050.0,104040.0,0.002]
[1747606593359,1.57359402,104050.0,104040.0,0.002]
[1747606593571,1.56359402,104050.0,104040.0,0.002]
[1747606593776,1.57359402,104050.0,104040.0,0.002]
[1747606593986,1.56359402,104050.0,104040.0,0.002]
[1747606594204,1.57359402,104050.0,104040.0,0.002]
[1747606594418,1.56359402,104050.0,104040.0,0.002]
[1747606594845,1.57359402,104050.0,104040.0,0.002]
[1747606595266,1.56359402,104050.0,104040.0,0.002]
[1747606595719,1.57359402,104050.0,104040.0,0.002]
[1747606596053,1.79811402,104050.0,104040.0,0.002]
[1747606596471,1.91811402,104050.0,104040.0,0.002]
[1747606597025,1.44871402,104050.0,104040.0,0.002]
[1747606597239,1.91811402,104050.0,104040.0,0.002]
[1747606600220,1.6970761,104050.0,104040.0,0.002]
[1747606600429,1.91811402,104050.0,104040.0,0.002]
[1747606602299,2.60591402,104050.0,104040.0,0.002]
[1747606602518,2.6813298,104050.0,104040.0,0.002]
[1747606602664,2.6236598,104050.0,104040.0,0.002]
[1747606607686,1.12868103,104050.0,104040.0,0.0374]
[1747606607896,1.69047317,104050.0,104040.0,0.002]
[1747606608101,1.72341402,104050.0,104040.0,0.002]
[1747606608277,1.73816351,104050.0,104040.0,0.002]
[1747606608488,1.73716351,104050.0,104040.0,0.002]
[1747606608873,1.71010133,104050.0,104040.0,0.003]
[1747606609042,1.72330341,104050.0,104040.0,0.003]
[1747606609246,1.47131392,104050.0,104040.0,0.003]
[1747606609432,1.70551392,104050.0,104040.0,0.003]
[1747606609651,1.70651392,104050.0,104040.0,0.003]
[1747606610059,1.70551392,104050.0,104040.0,0.003]
[1747606610294,1.70651392,104050.0,104040.0,0.003]
[1747606610544,1.46570975,104050.0,104040.0,0.003]
[1747606610749,1.46570975,104050.0,104040.0,0.23053375]
[1747606610750,0.78752023,104050.0,104040.0,0.23053375]
[1747606611015,0.65429525,104050.0,104040.0,0.0383]
[1747606611214,0.99429525,104050.0,104040.0,0.0383]
[1747606612182,0.76013525,104050.0,104040.0,0.0383]
[1747606613864,0.76013525,104050.0,104040.0,0.04130226]
[1747606616147,0.76013525,104050.0,104040.0,0.02310226]
[1747606616443,0.7746761,104050.0,104040.0,0.00600226]
[1747606617070,0.99571402,104050.0,104040.0,0.00600226]
[1747606617292,1.05021214,104050.0,104040.0,0.00600226]
[1747606617548,1.05021214,104050.0,104040.0,0.003]
[1747606619782,1.05021214,104050.0,104040.0,0.00052]
[1747606621674,0.81067422,104050.0,104040.0,0.00052]
[1747606621885,1.01181337,104050.0,104040.0,0.00052]
[1747606622302,1.02635422,104050.0,104040.0,0.00052]
[1747606622511,1.02635422,104050.0,104040.0,0.01892]
[1747606622720,0.67181337,104050.0,104040.0,0.03692]
[1747606623128,1.02635422,104050.0,104040.0,0.03692]
[1747606623331,0.68635422,104050.0,104040.0,0.03692]
[1747606623535,1.02635422,104050.0,104040.0,0.03692]
[1747606623688,1.02635422,104050.0,104040.0,0.03992252]
[1747606625174,1.02635422,104050.0,104040.0,0.02192252]
[1747606625380,1.02635422,104050.0,104040.0,0.00352252]
[1747606625796,1.02635422,104050.0,104040.0,0.02122252]
[1747606626435,1.02623422,104050.0,104040.0,0.02122252]
[1747606626841,1.02623422,104050.0,104040.0,0.03882252]
[1747606627825,1.02623422,104050.0,104040.0,0.00352252]
[1747606628051,0.20816427,104030.0,104020.0,0.02986914]
[1747606628280,0.19855249,104030.0,104020.0,0.23175338]
[1747606628493,0.19855249,104030.0,104020.0,0.25098017]
[1747606628901,0.19855249,104030.0,104020.0,0.23871103]
[1747606629567,0.19955249,104030.0,104020.0,0.24171103]
[1747606629791,0.18993998,104030.0,104020.0,0.0206]
[1747606630004,0.18993998,104030.0,104020.0,0.003]
[1747606630250,0.30419337,104030.0,104020.0,0.003]
[1747606630467,0.88142815,104030.0,104020.0,0.003]
[1747606630696,0.64279023,104030.0,104020.0,0.01437372]
[1747606631112,0.66059101,104030.0,104020.0,0.01437372]
[1747606631320,0.65959101,104030.0,104020.0,0.01037372]
[1747606631757,0.66059101,104030.0,104020.0,0.01237372]
[1747606632522,0.65959101,104030.0,104020.0,0.00937372]
[1747606632741,0.65959101,104030.0,104020.0,0.01137372]
[1747606636064,0.67799101,104030.0,104020.0,0.01137372]
[1747606636915,0.65959101,104030.0,104020.0,0.01137372]
[1747606637826,0.67809101,104030.0,104020.0,0.01137372]
[1747606640111,0.67809101,104030.0,104020.0,0.01437672]
[1747606643865,0.65959101,104030.0,104020.0,0.01437672]
[1747606644034,0.89287101,104030.0,104020.0,0.03207672]
[1747606644499,0.91147101,104030.0,104020.0,0.01437672]
[1747606644773,0.67819101,104030.0,104020.0,0.01437672]
[1747606644999,0.91143101,104030.0,104020.0,0.01437672]
[1747606645854,0.89283101,104030.0,104020.0,0.01437672]
[1747606647204,0.89283101,104030.0,104010.0,0.00961409]
[1747606647205,0.19227071,104020.0,104010.0,0.00961409]
[1747606647561,0.20188406,104020.0,104010.0,0.22969079]
[1747606648373,0.20288406,104020.0,104010.0,0.23369079]
[1747606648563,0.20288406,104020.0,104010.0,0.22407661]
[1747606649005,0.20288406,104020.0,104010.0,0.23369088]
[1747606649712,0.20388406,104020.0,104010.0,0.23669088]
[1747606650170,0.20388406,104020.0,104010.0,0.24630506]
[1747606650379,0.20388406,104020.0,104010.0,0.28333295]
[1747606650984,0.20388406,104020.0,104010.0,0.27371905]
[1747606651721,0.002,104020.0,104010.0,0.28333286]
[1747606652172,0.02122604,104020.0,104010.0,0.28333286]
[1747606652389,0.21349675,104020.0,104010.0,0.26410506]
[1747606652592,0.23272353,104020.0,104010.0,0.27371896]
[1747606652794,0.21349749,104020.0,104010.0,0.04297412]
[1747606653232,0.21349749,104020.0,104010.0,0.06180236]
[1747606653369,0.21349749,104020.0,104010.0,0.26370592]
[1747606653573,0.21349749,104020.0,104010.0,0.28293437]
[1747606653785,0.0116127,104020.0,104010.0,0.29254771]
[1747606653995,0.01161279,104020.0,104010.0,0.29254771]
[1747606654219,0.03083921,104020.0,104010.0,0.29254771]
[1747606654849,0.04045265,104020.0,104010.0,0.2925478]
[1747606655064,0.05006618,104020.0,104010.0,0.2925478]
[1747606655276,0.05006618,104020.0,104010.0,0.29254725]
[1747606655466,0.2327241,104020.0,104010.0,0.27331964]
[1747606655590,0.2327241,104020.0,104010.0,0.28293354]
[1747606657826,0.22311103,104020.0,104010.0,0.28293363]